[Event "DVM U12w 2024"]
[Site "Bad Homburg"]
[Date "2024.12.29"]
[Round "6"]
[White "Brandt, Thea"]
[Black "Winkler, Helena"]
[Result "0-1"]
[ECO "C55"]
[WhiteElo "794"]
[BlackElo "778"]
[Annotator "NA RC"]
[PlyCount "50"]
[EventDate "2024.12.23"]
[EventType "team-tourn"]
[EventRounds "7"]
[EventCountry "GER"]
[SourceTitle "playchess.com"]
[Source "ChessBase"]
[SourceQuality "1"]
[TimeControl "40/5400+30:1800+30"]

1. e4 {[%emt 0:00:02]} e5 {[%emt 0:00:06]} 2. Nf3 {[%emt 0:00:04]} Nf6 {[%emt 0:00:08]} 3. Nc3 {[%emt 0:00:09]} d6 {[%emt 0:00:09]} 4. Bc4 {[%emt 0:00:46]} Be7 {[%emt 0:00:22]} 5. d3 {[%emt 0:00:22]} O-O {[%emt 0:00:10]} 6. O-O {[%emt 0:01:21]} Nc6 {[%emt 0:03:33]} 7. d4 {[%emt 0:02:05]} Bg4 {[%emt 0:00:00]} 8. dxe5 {[%emt 0:00:10]} Nxe5 {[%emt 0:00:00]} 9. Be2 {[%emt 0:00:23]} Nc6 {[%emt 0:00:00]} 10. Bg5 {[%emt 0:00:34]} h6 {[%emt 0:00:00]} 11. Bxf6 {[%emt 0:00:25]} Bxf6 {[%emt 0:00:00]} 12. Nd5 {[%emt 0:01:09]} Bxf3 {[%emt 0:00:07]} 13. Bxf3 {[%emt 0:00:00]} Bd4 {[%emt 0:00:20]} 14. c3 {[%emt 0:00:24]} Be5 {[%emt 0:00:21]} 15. Rc1 {[%emt 0:01:28]} Qh4 {[%emt 0:00:19]} 16. h3 {[%emt 0:00:22]} Qg5 {[%emt 0:01:00]} 17. Nxc7 {[%emt 0:00:25]} Bf4 {[%emt 0:00:33]} 18. Qc2 {[%emt 0:00:33]} Bxc1 {[%emt 0:00:21]} 19. Nxa8 {[%emt 0:00:10]} Rxa8 {[%emt 0:00:25]} 20. Rxc1 {[%emt 0:00:07]} Re8 {[%emt 0:00:26]} 21. Rd1 {[%emt 0:00:43]} Re6 {[%emt 0:00:41]} 22. Bg4 {[%emt 0:00:51]} Rf6 {[%emt 0:00:39]} 23. e5 {[%emt 0:00:18]} Nxe5 {[%emt 0:00:14]} 24. Be2 {[%emt 0:00:37]} Rg6 {[%emt 0:00:24]} 25. Rd5 {[%emt 0:00:34]} Qxg2# {[%emt 0:00:09]} 0-1

[Event "DVM U12w 2024"]
[Site "Bad Homburg"]
[Date "2024.12.29"]
[Round "6"]
[White "Klymenko, Stefaniia"]
[Black "Dennhardt, Mira"]
[Result "1-0"]
[ECO "C50"]
[WhiteElo "785"]
[BlackElo "830"]
[Annotator "NA RC"]
[PlyCount "28"]
[EventDate "2024.12.23"]
[EventType "team-tourn"]
[EventRounds "7"]
[EventCountry "GER"]
[SourceTitle "playchess.com"]
[Source "ChessBase"]
[SourceQuality "1"]
[TimeControl "40/5400+30:1800+30"]

1. e4 e5 2. Nf3 Nc6 3. Ng1 {[%emt 0:01:03]} Nb8 {[%emt 0:01:01]} 4. Nf3 {[%emt 0:00:05]} Nc6 {[%emt 0:00:28]} 5. Bc4 {[%emt 0:03:48]} Nf6 {[%emt 0:00:12]} 6. Nc3 {[%emt 0:00:05]} Bc5 {[%emt 0:00:47]} 7. d3 {[%emt 0:00:17]} d6 {[%emt 0:00:07]} 8. Be3 {[%emt 0:00:10]} Bxe3 {[%emt 0:00:42]} 9. fxe3 {[%emt 0:00:06]} O-O {[%emt 0:01:16]} 10. O-O {[%emt 0:00:11]} Ng4 {[%emt 0:03:55]} 11. Qe1 {[%emt 0:04:56]} g6 {[%emt 0:05:52]} 12. h3 {[%emt 0:05:43]} Nf6 {[%emt 0:01:14]} 13. Qh4 {[%emt 0:05:00]} a6 {[%emt 0:04:33]} 14. Ng5 {[%emt 0:04:44]} Nb4 {[%emt 0:01:44]} 1-0

[Event "DVM U12w 2024"]
[Site "Bad Homburg"]
[Date "2024.12.29"]
[Round "6"]
[White "Markl, Paula"]
[Black "Kotliarova, Emily"]
[Result "0-1"]
[ECO "C46"]
[WhiteElo "759"]
[BlackElo "1139"]
[Annotator "NA RC"]
[PlyCount "86"]
[EventDate "2024.12.23"]
[EventType "team-tourn"]
[EventRounds "7"]
[EventCountry "GER"]
[SourceTitle "playchess.com"]
[Source "ChessBase"]
[SourceQuality "1"]
[TimeControl "40/5400+30:1800+30"]

1. e4 {[%emt 0:00:04]} e5 {[%emt 0:00:01]} 2. Nf3 {[%emt 0:00:12]} Nc6 {[%emt 0:00:06]} 3. Nc3 {[%emt 0:00:15]} d5 {[%emt 0:00:08]} 4. g3 {[%emt 0:00:22]} d4 {[%emt 0:00:34]} 5. Nd5 {[%emt 0:00:29]} Nf6 {[%emt 0:00:36]} 6. Nxf6+ {[%emt 0:00:16]} Qxf6 {[%emt 0:00:03]} 7. Bg2 {[%emt 0:00:13]} Bg4 {[%emt 0:00:28]} 8. O-O {[%emt 0:00:11]} Bc5 {[%emt 0:01:01]} 9. d3 {[%emt 0:00:13]} O-O {[%emt 0:01:01]} 10. Bd2 {[%emt 0:00:07]} Qe7 {[%emt 0:04:45]} 11. a3 {[%emt 0:00:38]} Qd8 {[%emt 0:04:09]} 12. h3 {[%emt 0:00:27]} Bxf3 {[%emt 0:00:46]} 13. Bxf3 {[%emt 0:00:13]} a5 {[%emt 0:12:05]} 14. Bg2 {[%emt 0:00:47]} Qd7 {[%emt 0:03:36]} 15. Qe2 {[%emt 0:02:00]} Rab8 {[%emt 0:05:16]} 16. c3 {[%emt 0:03:00]} b5 {[%emt 0:03:55]} 17. b4 {[%emt 0:00:13]} Bb6 {[%emt 0:06:55]} 18. a4 {[%emt 0:01:40]} dxc3 {[%emt 0:06:53]} 19. Bxc3 {[%emt 0:00:43]} axb4 {[%emt 0:00:57]} 20. axb5 {[%emt 0:00:22]} bxc3 {[%emt 0:00:30]} 21. bxc6 {[%emt 0:00:11]} Qxc6 {[%emt 0:00:24]} 22. Rac1 {[%emt 0:00:20]} Bd4 {[%emt 0:00:25]} 23. Qa2 {[%emt 0:02:52]} Rb6 {[%emt 0:05:34]} 24. h4 {[%emt 0:03:31]} Ra8 {[%emt 0:04:08]} 25. Qe2 {[%emt 0:00:30]} Rab8 {[%emt 0:00:56]} 26. Qg4 {[%emt 0:01:07]} Qg6 {[%emt 0:01:53]} 27. Qd7 {[%emt 0:08:55]} Qxg3 {[%emt 0:08:04]} 28. Qxc7 {[%emt 0:00:00]} Qxd3 {[%emt 0:00:59]} 29. Rfd1 {[%emt 0:00:00]} Qa6 {[%emt 0:01:56]} 30. Bf1 {[%emt 0:00:00]} Qb7 {[%emt 0:01:05]} 31. Qc4 {[%emt 0:00:00]} g6 {[%emt 0:03:06]} 32. Re1 {[%emt 0:00:00]} Qc6 {[%emt 0:01:14]} 33. Qd3 {[%emt 0:00:00]} Qf6 {[%emt 0:00:33]} 34. Re2 {[%emt 0:00:00]} Qf4 {[%emt 0:01:19]} 35. Rcc2 {[%emt 0:01:36]} Qg4+ {[%emt 0:00:32]} 36. Bg2 {[%emt 0:00:36]} Rb1+ {[%emt 0:00:31]} 37. Kh2 {[%emt 0:00:27]} Qxh4+ {[%emt 0:00:45]} 38. Bh3 {[%emt 0:00:57]} g5 {[%emt 0:01:29]} 39. f3 {[%emt 0:01:04]} Rh1+ {[%emt 0:07:56]} 40. Kxh1 {[%emt 0:00:49]} Qxh3+ {[%emt 0:00:10]} 41. Rh2 {[%emt 0:30:19]} Rb1+ {[%emt 0:30:08]} 42. Rc1 {[%emt 0:01:01]} Rxc1+ {[%emt 0:00:04]} 43. Qd1 {[%emt 0:00:54]} Rxd1# {[%emt 0:00:02]} 0-1